[Event "Snabb-SM för veteraner, 65+ 2019"]
[Site "Schackcentrum, Vegagatan 20, Gothenburg, Sweden"]
[Date "2019.10.06"]
[Round "11.8"]
[White "Nordstrom, Per-Olov"]
[Black "Andersson, Kaj"]
[Result "1/2-1/2"]
[TimeControl "15 minutes + 10 seconds per move from move one"]
[WhiteFideId "1714317"]
[BlackFideId "1709860"]
[WhiteElo "1940"]
[BlackElo "2083"]

1. e4 {[%clk 00:15:16]} {[%emt 00:00:02]} c5 {[%clk 00:15:18]} {[%emt
00:00:02]} 2. Nf3 {[%clk 00:15:23]} {[%emt 00:00:03]} d6 {[%clk 00:15:27]}
{[%emt 00:00:02]} 3. g3 {[%clk 00:15:28]} {[%emt 00:00:05]} Nf6 {[%clk
00:15:27]} {[%emt 00:00:09]} 4. d3 {[%clk 00:15:33]} {[%emt 00:00:05]} b5
{[%clk 00:15:12]} {[%emt 00:00:25]} 5. a4 {[%clk 00:15:21]} {[%emt 00:00:23]}
b4 {[%clk 00:15:13]} {[%emt 00:00:08]} 6. Nbd2 {[%clk 00:15:24]} {[%emt
00:00:06]} Bb7 {[%clk 00:15:16]} {[%emt 00:00:06]} 7. Bg2 {[%clk 00:15:26]}
{[%emt 00:00:09]} e6 {[%clk 00:15:19]} {[%emt 00:00:07]} 8. O-O {[%clk
00:15:22]} {[%emt 00:00:14]} Be7 {[%clk 00:15:18]} {[%emt 00:00:12]} 9. Re1
{[%clk 00:15:08]} {[%emt 00:00:23]} O-O {[%clk 00:15:23]} {[%emt 00:00:04]} 10.
Nc4 {[%clk 00:14:33]} {[%emt 00:00:45]} Nbd7 {[%clk 00:15:25]} {[%emt
00:00:08]} 11. e5 {[%clk 00:13:53]} {[%emt 00:00:49]} dxe5 {[%clk 00:15:25]}
{[%emt 00:00:10]} 12. Ncxe5 {[%clk 00:13:56]} {[%emt 00:00:07]} Nxe5 {[%clk
00:15:27]} {[%emt 00:00:08]} 13. Nxe5 {[%clk 00:13:46]} {[%emt 00:00:20]} Bxg2
{[%clk 00:15:25]} {[%emt 00:00:11]} 14. Kxg2 {[%clk 00:13:52]} {[%emt
00:00:04]} Qd5+ {[%clk 00:15:01]} {[%emt 00:00:33]} 15. Qf3 {[%clk 00:13:52]}
{[%emt 00:00:10]} Rac8 {[%clk 00:14:35]} {[%emt 00:00:36]} 16. Nc4 {[%clk
00:12:45]} {[%emt 00:01:17]} Rfd8 {[%clk 00:14:12]} {[%emt 00:00:32]} 17. Bf4
{[%clk 00:12:02]} {[%emt 00:00:53]} Qxf3+ {[%clk 00:13:30]} {[%emt 00:00:52]}
18. Kxf3 {[%clk 00:12:09]} {[%emt 00:00:04]} Nd5 {[%clk 00:13:35]} {[%emt
00:00:05]} 19. Bd2 {[%clk 00:11:59]} {[%emt 00:00:20]} Bf6 {[%clk 00:13:29]}
{[%emt 00:00:17]} 20. Re2 {[%clk 00:11:21]} {[%emt 00:00:48]} Ne7 {[%clk
00:13:26]} {[%emt 00:00:13]} 21. Kg2 {[%clk 00:10:34]} {[%emt 00:00:58]} Nc6
{[%clk 00:13:26]} {[%emt 00:00:08]} 22. Be3 {[%clk 00:09:56]} {[%emt 00:00:48]}
Bd4 {[%clk 00:13:05]} {[%emt 00:00:31]} 23. Bxd4 {[%clk 00:09:19]} {[%emt
00:00:48]} Nxd4 {[%clk 00:12:55]} {[%emt 00:00:20]} 24. Rd2 {[%clk 00:09:23]}
{[%emt 00:00:05]} Rd5 {[%clk 00:12:28]} {[%emt 00:00:37]} 25. b3 {[%clk
00:09:05]} {[%emt 00:00:28]} Rcd8 {[%clk 00:12:23]} {[%emt 00:00:15]} 26. Ne3
{[%clk 00:08:41]} {[%emt 00:00:35]} R5d7 {[%clk 00:12:17]} {[%emt 00:00:16]} 27.
Nc4 {[%clk 00:08:41]} {[%emt 00:00:10]} f6 {[%clk 00:12:14]} {[%emt 00:00:12]}
28. f4 {[%clk 00:08:29]} {[%emt 00:00:22]} Kf7 {[%clk 00:12:09]} {[%emt
00:00:15]} 29. Re1 {[%clk 00:08:28]} {[%emt 00:00:11]} h5 {[%clk 00:11:12]}
{[%emt 00:01:07]} 30. h4 {[%clk 00:08:24]} {[%emt 00:00:14]} g6 {[%clk
00:10:39]} {[%emt 00:00:44]} 31. Re4 {[%clk 00:08:09]} {[%emt 00:00:24]} Rd5
{[%clk 00:09:48]} {[%emt 00:01:02]} 32. Ne3 {[%clk 00:08:07]} {[%emt 00:00:12]}
R5d7 {[%clk 00:09:21]} {[%emt 00:00:36]} 33. Nc4 {[%clk 00:08:14]} {[%emt
00:00:05]} Rd5 {[%clk 00:09:23]} {[%emt 00:00:08]} 34. Ne3 {[%clk 00:08:20]}
{[%emt 00:00:04]} R5d7 {[%clk 00:09:31]} {[%emt 00:00:02]} 35. Nc4 {[%clk
00:08:27]} {[%emt 00:00:02]} 1/2-1/2

[Event "Snabb-SM för veteraner, 65+ 2019"]
[Site "Schackcentrum, Vegagatan 20, Gothenburg, Sweden"]
[Date "2019.10.06"]
[Round "11.9"]
[White "Wahlstedt, Mats"]
[Black "Herrman, Jan"]
[Result "0-1"]
[TimeControl "15 minutes + 10 seconds per move from move one"]
[WhiteFideId "1712250"]
[BlackFideId "1731882"]
[WhiteElo "1821"]
[BlackElo "1929"]

1. e4 {[%clk 00:15:18]} {[%emt 00:00:01]} e5 {[%clk 00:15:12]} {[%emt
00:00:09]} 2. Nf3 {[%clk 00:15:27]} {[%emt 00:00:02]} Nc6 {[%clk 00:15:19]}
{[%emt 00:00:03]} 3. Bb5 {[%clk 00:15:35]} {[%emt 00:00:02]} Nf6 {[%clk
00:15:25]} {[%emt 00:00:04]} 4. d3 {[%clk 00:15:32]} {[%emt 00:00:13]} d6
{[%clk 00:15:22]} {[%emt 00:00:14]} 5. h3 {[%clk 00:15:13]} {[%emt 00:00:29]}
Be7 {[%clk 00:15:25]} {[%emt 00:00:07]} 6. c3 {[%clk 00:15:07]} {[%emt
00:00:16]} O-O {[%clk 00:15:28]} {[%emt 00:00:07]} 7. Nbd2 {[%clk 00:14:55]}
{[%emt 00:00:23]} a6 {[%clk 00:15:18]} {[%emt 00:00:19]} 8. Ba4 {[%clk
00:15:00]} {[%emt 00:00:04]} b5 {[%clk 00:15:23]} {[%emt 00:00:05]} 9. Bc2
{[%clk 00:15:08]} {[%emt 00:00:03]} Na5 {[%clk 00:15:11]} {[%emt 00:00:21]} 10.
b4 {[%clk 00:14:53]} {[%emt 00:00:25]} Nb7 {[%clk 00:15:07]} {[%emt 00:00:14]}
11. a4 {[%clk 00:14:56]} {[%emt 00:00:08]} Bd7 {[%clk 00:14:46]} {[%emt
00:00:30]} 12. O-O {[%clk 00:14:41]} {[%emt 00:00:26]} c5 {[%clk 00:14:51]}
{[%emt 00:00:05]} 13. a5 {[%clk 00:14:16]} {[%emt 00:00:35]} Qc7 {[%clk
00:14:41]} {[%emt 00:00:20]} 14. Bb2 {[%clk 00:14:13]} {[%emt 00:00:14]} Rac8
{[%clk 00:14:29]} {[%emt 00:00:22]} 15. Bb3 {[%clk 00:13:40]} {[%emt 00:00:43]}
Nd8 {[%clk 00:13:07]} {[%emt 00:01:32]} 16. bxc5 {[%clk 00:13:14]} {[%emt
00:00:37]} dxc5 {[%clk 00:13:06]} {[%emt 00:00:10]} 17. d4 {[%clk 00:12:58]}
{[%emt 00:00:26]} exd4 {[%clk 00:11:58]} {[%emt 00:01:17]} 18. e5 {[%clk
00:12:39]} {[%emt 00:00:29]} Ne8 {[%clk 00:10:43]} {[%emt 00:01:24]} 19. Bd5
{[%clk 00:11:19]} {[%emt 00:01:30]} dxc3 {[%clk 00:10:14]} {[%emt 00:00:40]} 20.
Bxc3 {[%clk 00:11:28]} {[%emt 00:00:02]} Be6 {[%clk 00:10:22]} {[%emt
00:00:01]} 21. Be4 {[%clk 00:11:18]} {[%emt 00:00:20]} b4 {[%clk 00:09:05]}
{[%emt 00:01:27]} 22. Bb2 {[%clk 00:11:27]} {[%emt 00:00:02]} c4 {[%clk
00:08:50]} {[%emt 00:00:24]} 23. Bc1 {[%clk 00:10:14]} {[%emt 00:01:24]} c3
{[%clk 00:08:24]} {[%emt 00:00:35]} 24. Nb3 {[%clk 00:10:00]} {[%emt 00:00:25]}
Qc4 {[%clk 00:07:27]} {[%emt 00:01:05]} 25. Bc2 {[%clk 00:08:58]} {[%emt
00:01:13]} Nb7 {[%clk 00:06:12]} {[%emt 00:01:25]} 26. Re1 {[%clk 00:08:36]}
{[%emt 00:00:32]} Nc5 {[%clk 00:05:12]} {[%emt 00:01:10]} 27. Nxc5 {[%clk
00:08:11]} {[%emt 00:00:36]} Qxc5 {[%clk 00:05:13]} {[%emt 00:00:10]} 28. Qd3
{[%clk 00:07:45]} {[%emt 00:00:35]} g6 {[%clk 00:05:12]} {[%emt 00:00:11]} 29.
Nd4 {[%clk 00:06:22]} {[%emt 00:01:33]} Nc7 {[%clk 00:03:28]} {[%emt 00:01:54]}
30. Nxe6 {[%clk 00:06:12]} {[%emt 00:00:20]} Nxe6 {[%clk 00:03:36]} {[%emt
00:00:02]} 31. Be3 {[%clk 00:06:17]} {[%emt 00:00:05]} Qc4 {[%clk 00:02:00]}
{[%emt 00:01:46]} 32. Bb6 {[%clk 00:05:47]} {[%emt 00:00:40]} Qxd3 {[%clk
00:01:01]} {[%emt 00:01:09]} 33. Bxd3 {[%clk 00:05:55]} {[%emt 00:00:01]} Nc5
{[%clk 00:01:06]} {[%emt 00:00:06]} 34. Bxc5 {[%clk 00:04:06]} {[%emt
00:01:59]} Rxc5 {[%clk 00:01:06]} {[%emt 00:00:10]} 35. Bc2 {[%clk 00:03:58]}
{[%emt 00:00:18]} Rd8 {[%clk 00:01:10]} {[%emt 00:00:05]} 36. Bb3 {[%clk
00:03:22]} {[%emt 00:00:46]} c2 {[%clk 00:00:56]} {[%emt 00:00:25]} 37. Kf1
{[%clk 00:03:03]} {[%emt 00:00:28]} Rdc8 {[%clk 00:01:01]} {[%emt 00:00:06]} 38.
Rac1 {[%clk 00:03:00]} {[%emt 00:00:13]} Bg5 {[%clk 00:01:09]} {[%emt
00:00:02]} 39. e6 {[%clk 00:02:41]} {[%emt 00:00:28]} Bxc1 {[%clk 00:01:09]}
{[%emt 00:00:11]} 40. exf7+ {[%clk 00:02:03]} {[%emt 00:00:47]} Kf8 {[%clk
00:01:18]} {[%emt 00:00:01]} 41. Rxc1 {[%clk 00:02:11]} {[%emt 00:00:02]} Rc3
{[%clk 00:01:22]} {[%emt 00:00:06]} 42. Be6 {[%clk 00:02:13]} {[%emt 00:00:09]}
R8c7 {[%clk 00:01:23]} {[%emt 00:00:09]} 0-1